{"text_format":"3","workbook":"xlsx","n_sheets":6,"sheets":["Fragebogen","Ergebnis","Berechnung","Norm_Gesamt","Norm_Männer","Norm_Frauen"],"not_rendered":{"charts":1,"defined_names":2},"read":"whole","date_system":"1900"}

{"sheet":"Fragebogen","index":0,"n_rows":75,"n_cols":3,"rows_kept":75,"merged":[[2,0,2,2],[3,0,3,2],[6,0,6,2]]}
["Arbeitsbezogenes Verhaltens- und Erlebensmuster (AVEM)"]
[]
["Anleitung"]
["Wir bitten Sie, einige Ihrer üblichen Verhaltensweisen, Einstellungen und Gewohnheiten zu beschreiben, wobei vor allem auf Ihr Arbeitsleben Bezug genommen wird. Dazu finden Sie im folgenden eine Reihe von Aussagen.\n\nLesen Sie jeden dieser Sätze gründlich durch und entscheiden Sie, in welchem Maße er auf Sie persönlich zutrifft."]
[]
["Hinweis"]
["Bei Ihrer Antwort steht 1 für „trifft überhaupt nicht zu“, 5 für „trifft völlig zu“ und die Zahlen dazwischen für die verschiedenen Abstufungen."]
[]
["Aussage",null,"Zutreffend?"]
[1,"Die Arbeit ist für mich der wichtigste Lebensinhalt."]
[2,"Ich möchte beruflich weiter kommen, als es die meisten meiner Bekannten geschafft haben."]
[3,"Wenn es sein muss, arbeite ich bis zur Erschöpfung."]
[4,"Meine Arbeit soll stets ohne Fehl und Tadel sein."]
[5,"Zum Feierabend ist die Arbeit für mich vergessen."]
[6,"Wenn ich keinen Erfolg habe, resigniere ich schnell."]
[7,"Für mich sind Schwierigkeiten dazu da, dass ich sie überwinde."]
[8,"Mich bringt so leicht nichts aus der Ruhe."]
[9,"Mein bisheriges Berufsleben war recht erfolgreich."]
[10,"Mit meinem bisherigen Leben kann ich zufrieden sein."]
[11,"Mein Partner/meine Partnerin zeigt Verständnis für meine Arbeit."]
[12,"Die Arbeit ist mein ein und alles."]
[13,"Berufliche Karriere bedeutet mir wenig."]
[14,"Bei der Arbeit kenne ich keine Schonung."]
[15,"Ich kontrolliere lieber noch dreimal nach, als dass ich fehlerhafte Arbeitsergebnisse abliefere."]
[16,"Auch in der Freizeit beschäftigen mich viele Arbeitsprobleme."]
[17,"Misserfolge kann ich nur schwer verkraften."]
[18,"Wenn mir etwas nicht gelingt, sage ich mir: „Jetzt erst recht“!"]
[19,"Ich bin ein ruheloser Mensch."]
[20,"In meiner bisherigen Berufslaufbahn habe ich mehr Erfolge als Enttäuschungen erlebt."]
[21,"Im Großen und Ganzen bin ich glücklich und zufrieden."]
[22,"Meine Familie interessiert sich nur wenig für meine Arbeitsprobleme."]
[23,"Ich könnte auch ohne meine Arbeit ganz glücklich sein."]
[24,"Was meine berufliche Entwicklung angeht, so halte ich mich für ziemlich ehrgeizig."]
[25,"Ich arbeite wohl mehr als ich sollte."]
[26,"Bei meiner Arbeit habe ich den Ehrgeiz, keinerlei Fehler zu machen."]
[27,"Nach der Arbeit kann ich ohne Probleme abschalten."]
[28,"Berufliche Fehlschläge können mich leicht entmutigen."]
[29,"Misserfolge werfen mich nicht um, sondern veranlassen mich zu noch stärkerer Anstrengung."]
[30,"Ich glaube, dass ich ziemlich hektisch bin."]
[31,"Wirkliche berufliche Erfolge sind mir bisher versagt geblieben."]
[32,"Ich habe allen Grund, meine Zukunft optimistisch zu sehen."]
[33,"Von meinem Partner/meiner Partnerin wünschte ich mir mehr Rücksichtnahme auf meine beruflichen Aufgaben und Probleme."]
[34,"Ich brauche die Arbeit wie die Luft zum Atmen."]
[35,"Ich strebe nach höheren beruflichen Zielen als die meisten anderen."]
[36,"Ich neige dazu, über meine Kräfte hinaus zu arbeiten."]
[37,"Was immer ich tue, es muss perfekt sein."]
[38,"Feierabend ist Feierabend, da verschwende ich keine Gedanken mehr an die Arbeit."]
[39,"Wenn ich in der Arbeit erfolglos bin, deprimiert mich das sehr."]
[40,"Ich bin mir sicher, dass ich auch die künftigen Anforderungen des Lebens gut bewältigen kann."]
[41,"Ich glaube, ich bin ein ruhender Pol in meinem Umfeld."]
[42,"In meiner beruflichen Entwicklung ist mir bisher fast alles gelungen."]
[43,"Ich kann mich über mein Leben in keiner Weise beklagen."]
[44,"Bei meiner Familie finde ich jede Unterstützung."]
[45,"Ich wüsste nicht, wie ich ohne Arbeit leben sollte."]
[46,"Für meine berufliche Zukunft habe ich mir viel vorgenommen."]
[47,"Mein Tagesablauf ist durch chronischen Zeitmangel bestimmt."]
[48,"Für mich ist die Arbeit erst dann getan, wenn ich rundum mit dem Ergebnis zufrieden bin."]
[49,"Arbeitsprobleme beschäftigen mich eigentlich den ganzen Tag."]
[50,"Ich verliere leicht den Mut, wenn ich trotz Anstrengung keinen Erfolg habe."]
[51,"Ein Misserfolg kann bei mir neue Kräfte wecken."]
[52,"Ich kann mich in fast allen Situationen ruhig und bedächtig verhalten."]
[53,"Mein bisheriges Leben ist durch beruflichen Erfolg gekennzeichnet."]
[54,"Von manchen Seiten des Lebens bin ich ziemlich enttäuscht."]
[55,"Manchmal wünschte ich mir mehr Unterstützung durch die Menschen meiner Umgebung."]
[56,"Es gibt Wichtigeres im Leben als die Arbeit."]
[57,"Beruflicher Erfolg ist für mich ein wichtiges Lebensziel."]
[58,"In der Arbeit verausgabe ich mich stark."]
[59,"Es widerstrebt mir, wenn ich eine Arbeit abschließen muss, obwohl sie noch verbessert werden könnte."]
[60,"Meine Gedanken kreisen fast nur um die Arbeit."]
[61,"Wenn ich irgendwo versagt habe, kann mich das ziemlich mutlos machen."]
[62,"Wenn mir etwas nicht gelingt, bleibe ich hartnäckig und strenge mich um so mehr an."]
[63,"Hektik und Aufregung um mich herum lassen mich kalt."]
[64,"Meine beruflichen Leistungen können sich sehen lassen."]
[65,"Es dürfte nur wenige glücklichere Menschen geben als ich es bin."]
[66,"Wenn ich mal Rat und Hilfe brauche, ist immer jemand da."]

{"sheet":"Ergebnis","index":1,"n_rows":40,"n_cols":15,"rows_kept":40}
["Auswertung AVEM",null,"Norm:","Gesamt",null,"Vergleichsprofil:","Muster G"]
[]
["Name:",{"$nulls":4},"Datum:"]
[]
[{"$nulls":4},"Profil",{"$f":"INDIRECT($N$6&ROW()+6)","v":"Muster G"}]
[null,{"$f":"B32","v":"Erleben sozialer Unterstützung"},null,0.5,{"$f":"D32","v":{"$error":"#N/A"}},{"$f":"INDIRECT($N$6&24-ROW()+4)","v":6},{"$nulls":5},"Muster G","L",{"$f":"VLOOKUP(G1,L6:M47,2,FALSE)","v":"L"}]
[null,{"$f":"B31","v":"Lebenszufriedenheit"},null,1.5,{"$f":"D31","v":{"$error":"#N/A"}},{"$f":"INDIRECT($N$6&24-ROW()+4)","v":7},{"$nulls":5},"Muster S","M"]
[null,{"$f":"B30","v":"Erfolgserleben im Beruf"},null,2.5,{"$f":"D30","v":{"$error":"#N/A"}},7,{"$nulls":5},"Risiko A","N"]
[null,{"$f":"B29","v":"Innere Ruhe/Ausgeglichenheit"},null,3.5,{"$f":"D29","v":{"$error":"#N/A"}},7,{"$nulls":5},"Risiko B","O"]
[null,{"$f":"B28","v":"Offensive Problembewältigung"},null,4.5,{"$f":"D28","v":{"$error":"#DIV/0!"}},7]
[null,{"$f":"B27","v":"Resignationstendenz (bei Misserfolg)"},null,5.5,{"$f":"D27","v":{"$error":"#DIV/0!"}},3,{"$nulls":5},"Muster G","Muster S","Risiko A","Risiko B"]
[null,{"$f":"B26","v":"Distanzierungsfähigkeit"},null,6.5,{"$f":"D26","v":{"$error":"#N/A"}},6,{"$nulls":5},6,2,8,3]
[null,{"$f":"B25","v":"Perfektionsstreben"},null,7.5,{"$f":"D25","v":{"$error":"#DIV/0!"}},6,{"$nulls":5},8,2,6,3]
[null,{"$f":"B24","v":"Verausgabungsbereitschaft"},null,8.5,{"$f":"D24","v":{"$error":"#DIV/0!"}},5,{"$nulls":5},5,2,8,5]
[null,{"$f":"B23","v":"Beruflicher Ehrgeiz"},null,9.5,{"$f":"D23","v":{"$error":"#N/A"}},8,{"$nulls":5},6,3,7,4]
[null,{"$f":"B22","v":"Subjektive Bedeutung der Arbeit"},null,10.5,{"$f":"D22","v":{"$error":"#N/A"}},6,{"$nulls":5},6,8,2,4]
[{"$nulls":11},3,4,6,7]
[{"$nulls":11},7,4,6,2]
[{"$nulls":11},7,6,3,3]
[{"$nulls":11},7,4,6,2]
["Skala","Beschreibung","Rohwerte","Stanine",{"$nulls":7},7,6,4,2]
[1,"Subjektive Bedeutung der Arbeit",{"$f":"Berechnung!K2","v":36},{"$f":"VLOOKUP(C22,INDIRECT(\"Norm_\"&$D$1&\"!$A$2:$L$31\"),2,FALSE)","v":{"$error":"#N/A"}},{"$f":"IF(Berechnung!J2>1,\"*\",\"\")","v":"*"},{"$nulls":6},6,5,4,4]
[2,"Beruflicher Ehrgeiz",{"$f":"Berechnung!K3","v":36},{"$f":"VLOOKUP(C23,INDIRECT(\"Norm_\"&$D$1&\"!$A$2:$L$31\"),3,FALSE)","v":{"$error":"#N/A"}},{"$f":"IF(Berechnung!J3>1,\"*\",\"\")","v":"*"}]
[3,"Verausgabungsbereitschaft",{"$f":"Berechnung!K4","v":{"$error":"#DIV/0!"}},{"$f":"VLOOKUP(C24,INDIRECT(\"Norm_\"&$D$1&\"!$A$2:$L$31\"),4,FALSE)","v":{"$error":"#DIV/0!"}},{"$f":"IF(Berechnung!J4>1,\"*\",\"\")","v":"*"},null,{"$f":"IF(ISERROR(Berechnung!J17),\"\",Berechnung!J17)","v":""}]
[4,"Perfektionsstreben",{"$f":"Berechnung!K5","v":{"$error":"#DIV/0!"}},{"$f":"VLOOKUP(C25,INDIRECT(\"Norm_\"&$D$1&\"!$A$2:$L$31\"),5,FALSE)","v":{"$error":"#DIV/0!"}},{"$f":"IF(Berechnung!J5>1,\"*\",\"\")","v":"*"}]
[5,"Distanzierungsfähigkeit",{"$f":"Berechnung!K6","v":36},{"$f":"VLOOKUP(C26,INDIRECT(\"Norm_\"&$D$1&\"!$A$2:$L$31\"),6,FALSE)","v":{"$error":"#N/A"}},{"$f":"IF(Berechnung!J6>1,\"*\",\"\")","v":"*"}]
[6,"Resignationstendenz (bei Misserfolg)",{"$f":"Berechnung!K7","v":{"$error":"#DIV/0!"}},{"$f":"VLOOKUP(C27,INDIRECT(\"Norm_\"&$D$1&\"!$A$2:$L$31\"),7,FALSE)","v":{"$error":"#DIV/0!"}},{"$f":"IF(Berechnung!J7>1,\"*\",\"\")","v":"*"}]
[7,"Offensive Problembewältigung",{"$f":"Berechnung!K8","v":{"$error":"#DIV/0!"}},{"$f":"VLOOKUP(C28,INDIRECT(\"Norm_\"&$D$1&\"!$A$2:$L$31\"),8,FALSE)","v":{"$error":"#DIV/0!"}},{"$f":"IF(Berechnung!J8>1,\"*\",\"\")","v":"*"},null,{"$f":"IF(ISERROR(Berechnung!J18),\"\",Berechnung!J18)","v":""}]
[8,"Innere Ruhe/Ausgeglichenheit",{"$f":"Berechnung!K9","v":36},{"$f":"VLOOKUP(C29,INDIRECT(\"Norm_\"&$D$1&\"!$A$2:$L$31\"),9,FALSE)","v":{"$error":"#N/A"}},{"$f":"IF(Berechnung!J9>1,\"*\",\"\")","v":"*"}]
[9,"Erfolgserleben im Beruf",{"$f":"Berechnung!K10","v":36},{"$f":"VLOOKUP(C30,INDIRECT(\"Norm_\"&$D$1&\"!$A$2:$L$31\"),10,FALSE)","v":{"$error":"#N/A"}},{"$f":"IF(Berechnung!J10>1,\"*\",\"\")","v":"*"}]
[10,"Lebenszufriedenheit",{"$f":"Berechnung!K11","v":36},{"$f":"VLOOKUP(C31,INDIRECT(\"Norm_\"&$D$1&\"!$A$2:$L$31\"),11,FALSE)","v":{"$error":"#N/A"}},{"$f":"IF(Berechnung!J11>1,\"*\",\"\")","v":"*"},null,{"$f":"IF(ISERROR(Berechnung!J19),\"\",Berechnung!J19)","v":{"v":6,"d":"6.00"}}]
[11,"Erleben sozialer Unterstützung",{"$f":"Berechnung!K12","v":36},{"$f":"VLOOKUP(C32,INDIRECT(\"Norm_\"&$D$1&\"!$A$2:$L$31\"),12,FALSE)","v":{"$error":"#N/A"}},{"$f":"IF(Berechnung!J12>1,\"*\",\"\")","v":"*"}]
[]
["Wahrscheinlichkeit der Zugehörigkeit zu Muster …"]
["G","Gesunder Typ",null,{"$f":"Berechnung!I32","v":{"v":1.5181588667629955E-10,"d":"0.0%"}},{"$f":"IF(D35>0.95,\"← Typ (sicher)\",IF(K35=TRUE(),\"← Typ (tendenziell)\",\"\"))","v":""},{"$nulls":5},{"$f":"(D35=MAX($D$35:$D$38))","v":false}]
["S","Schonungstyp",null,{"$f":"Berechnung!I33","v":{"v":0.08513307988500018,"d":"8.5%"}},{"$f":"IF(D36>0.95,\"← Typ (sicher)\",IF(K36=TRUE(),\"← Typ (tendenziell)\",\"\"))","v":""},{"$nulls":5},{"$f":"(D36=MAX($D$35:$D$38))","v":false}]
["A","Risikotyp A",null,{"$f":"Berechnung!I34","v":{"v":1.2276033219679803E-7,"d":"0.0%"}},{"$f":"IF(D37>0.95,\"← Typ (sicher)\",IF(K37=TRUE(),\"← Typ (tendenziell)\",\"\"))","v":""},{"$nulls":5},{"$f":"(D37=MAX($D$35:$D$38))","v":false}]
["B","Risikotyp Burnout",null,{"$f":"Berechnung!I35","v":{"v":0.9148667972028518,"d":"91.5%"}},{"$f":"IF(D38>0.95,\"← Typ (sicher)\",IF(K38=TRUE(),\"← Typ (tendenziell)\",\"\"))","v":"← Typ (tendenziell)"},{"$nulls":5},{"$f":"(D38=MAX($D$35:$D$38))","v":true}]
[]
[{"$f":"IF(Berechnung!J13>1,\"*Vorsicht: Zu viele fehlende Antwortwerte. Ergebnis ungenau.\",\"\")","v":"*Vorsicht: Zu viele fehlende Antwortwerte. Ergebnis ungenau."}]

{"sheet":"Berechnung","index":2,"n_rows":67,"n_cols":17,"rows_kept":67,"hidden":true}
["Item","Skala","Label","Roh","Invertiert",null,"Subskalen","Label","Rohsumme","#Missing","Rohsumme\n(kor_missing)","Rohsumme\n(kor_faktor)","Mittelwert","Faktor_F1G","Faktor_F2S","Faktor_F3A","Faktor_F4B"]
["a1","BA","Arbeit ist das wichtigste",{"$f":"Fragebogen!C10","v":0},{"$f":"D2","v":0},null,"BA","Subjektive Bedeutsamkeit der Arbeit",{"$f":"SUMIF(B:B,G2,E:E)","v":12},{"$f":"COUNTIFS(B:B,G:G,E:E,0)","v":4},{"$f":"I2+J2*I2/(6-J2)","v":36},{"$f":"ROUND(K2+K2/5,0)","v":43},{"$f":"I2/6","v":{"v":2,"d":"2.00"}},0.8829105,0.6527669,1.0628081,0.7244985]
["a2","BE","berufl. weiter kommen",{"$f":"Fragebogen!C11","v":0},{"$f":"D3","v":0},null,"BE","Beruflicher Ehrgeiz",{"$f":"SUMIF(B:B,G3,E:E)","v":6},5,{"$f":"I3+J3*I3/(6-J3)","v":36},{"$f":"ROUND(K3+K3/5,0)","v":43},{"$f":"I3/6","v":{"v":1,"d":"1.00"}},0.899768,0.5766246,0.7691347,0.5642684]
["a3","VB","bis zur Erschöpfung",{"$f":"Fragebogen!C12","v":0},0,null,"VB","Verausgabungsbereitschaft",0,6,{"$error":"#DIV/0!"},{"$error":"#DIV/0!"},{"v":0,"d":"0.00"},1.7206287,1.5457596,1.8276074,1.6462504]
["a4","PS","ohne Fehl & Tadel",{"$f":"Fragebogen!C13","v":0},0,null,"PS","Perfektionsstreben",0,6,{"$error":"#DIV/0!"},{"$error":"#DIV/0!"},{"v":0,"d":"0.00"},0.2611766,0.0280928,0.2562368,0.1131392]
["a5","DF","abends Arb. vergessen",{"$f":"Fragebogen!C14","v":0},0,null,"DF","Distanzierungsfähigkeit",18,3,36,43,{"v":3,"d":"3.00"},2.0886436,2.1809104,1.8300581,1.8459468]
["a6","RT","resigniere schnell",{"$f":"Fragebogen!C15","v":0},0,null,"RT","Resignationstendenz bei Misserfolg",{"$f":"SUMIF(B:B,G7,E:E)","v":0},6,{"$error":"#DIV/0!"},{"$error":"#DIV/0!"},{"v":0,"d":"0.00"},1.785961,1.8451816,1.9828937,2.1427534]
["a7","OP","Schwierigk. überwinden",{"$f":"Fragebogen!C16","v":0},0,null,"OP","Offensive Problembewältigung",0,6,{"$error":"#DIV/0!"},{"$error":"#DIV/0!"},{"v":0,"d":"0.00"},2.0141628,1.8521138,1.8671741,1.7500042]
["a8","IR","nichts aus der Ruhe",{"$f":"Fragebogen!C17","v":0},0,null,"IR","Innere Ruhe",12,4,36,43,{"v":2,"d":"2.00"},1.8011405,1.7199908,1.5672988,1.489434]
["a9","EE","bisher erfolgreich",{"$f":"Fragebogen!C18","v":0},0,null,"EE","Erfolgserleben im Beruf",6,5,36,43,{"v":1,"d":"1.00"},1.4737421,1.3715621,1.3629123,1.2114638]
["a10","LZ","bisher zufrieden",{"$f":"Fragebogen!C19","v":0},0,null,"LZ","Lebenszufriedenheit",6,5,36,43,{"v":1,"d":"1.00"},0.8523736,0.7799424,0.6646026,0.5007182]
["a11","SU","P zeigt Verständnis",{"$f":"Fragebogen!C20","v":0},0,null,"SU","Erleben sozialer Unterstützung",18,3,36,43,{"v":3,"d":"3.00"},1.5032522,1.3907718,1.2789864,1.2705118]
["a12","BA","Arb. ist ein & alles",{"$f":"Fragebogen!C21","v":0},0,{"$nulls":3},"Missing:",{"$f":"MAX(J2:J12)","v":6},null,"Residuum:",{"$f":"1/6","v":0.16666666666666666},-164.0540478,-136.8233428,-145.4446699,-121.6387806]
["a13","BE","Karriere ist unwichtig",{"$f":"Fragebogen!C22","v":0},{"$f":"6-D14","v":6}]
["a14","VB","kenne keine Schonung",{"$f":"Fragebogen!C23","v":0},0]
["a15","PS","kontrolliere nochmals",{"$f":"Fragebogen!C24","v":0},0,null,"Sekundärfaktoren","Label","Wert","Mittelwert"]
["a16","DF","Arb.-probl. beschäftigen immer",{"$f":"Fragebogen!C25","v":0},{"$f":"6-D17","v":6},null,"SF1","Arbeitsengagement",{"$f":"SUM(K2:K6)","v":{"$error":"#DIV/0!"}},{"$f":"I17/5/6","v":{"$error":"#DIV/0!"}}]
["a17","RT","Mißerfolg schwer verkraften",{"$f":"Fragebogen!C26","v":0},0,null,"SF2","Widerstandsfähigkeit gegen Belastung",{"$f":"SUM(K7:K9)","v":{"$error":"#DIV/0!"}},{"$f":"I18/3/6","v":{"$error":"#DIV/0!"}}]
["a18","OP","wenn etwas nicht gelingt: erst recht",{"$f":"Fragebogen!C27","v":0},0,null,"SF3","Berufsbegleitende Emotionen",{"$f":"SUM(K10:K12)","v":{"v":108,"d":"108.00"}},{"$f":"I19/3/6","v":{"v":6,"d":"6.00"}},null,"Hinweis: Der Korrekturfaktor für fehlende"]
["a19","IR","ruheloser",{"$f":"Fragebogen!C28","v":0},{"$f":"6-D20","v":6},{"$nulls":6},"Werte ist nicht implementiert!"]
["a20","EE","eher erfolgreich",{"$f":"Fragebogen!C29","v":0},0]
["a21","LZ","glücklich & zufrieden",{"$f":"Fragebogen!C30","v":0},0]
["a22","SU","Fam. interessiert sich wenig",{"$f":"Fragebogen!C31","v":0},{"$f":"6-D23","v":6},null,"Diskr.-Fkt","Label","Wert"]
["a23","BA","auch ohne Arb. glücklich",{"$f":"Fragebogen!C32","v":0},{"$f":"6-D24","v":6},null,"F1G","Gesundheitstyp",{"$f":"SUMPRODUCT(6*$M$2:$M$13,$N$2:$N$13)","v":{"v":-47.83600919999999,"d":"-47.8360"}}]
["a24","BE","bin ehrgeizig",{"$f":"Fragebogen!C33","v":0},0,null,"F2S","Schon-Typ",{"$f":"SUMPRODUCT(6*$M$2:$M$13,$O$2:$O$13)","v":{"v":-27.691196199999993,"d":"-27.6912"}}]
["a25","VB","arbeite mehr als ich sollte",{"$f":"Fragebogen!C34","v":0},0,null,"F3A","A-Typ",{"$f":"SUMPRODUCT(6*$M$2:$M$13,$P$2:$P$13)","v":{"v":-41.14068850000001,"d":"-41.1407"}}]
["a26","PS","will keine Fehler machen",{"$f":"Fragebogen!C35","v":0},0,null,"F4B","Burnout-Typ",{"$f":"SUMPRODUCT(6*$M$2:$M$13,$Q$2:$Q$13)","v":{"v":-25.316633400000015,"d":"-25.3166"}}]
["a27","DF","kann gut abschalten",{"$f":"Fragebogen!C36","v":0},0]
["a28","RT","Fehlschläge entmutigen mich",{"$f":"Fragebogen!C37","v":0},0]
["a29","OP","Mißerfolge werfen mich nicht um",{"$f":"Fragebogen!C38","v":0},0]
["a30","IR","bin hektisch",{"$f":"Fragebogen!C39","v":0},{"$f":"6-D31","v":6},null,"W'keit","Label","Wert"]
["a31","EE","Erfolg bisher versagt geblieben",{"$f":"Fragebogen!C40","v":0},{"$f":"6-D32","v":6},null,"P1G","W'keit Gruppe G",{"$f":"1/(EXP(I24-I24)+EXP(I25-I24)+EXP(I26-I24)+EXP(I27-I24))","v":{"v":1.5181588667629955E-10,"d":"0.0000"}}]
["a32","LZ","Zukunft optimistisch",{"$f":"Fragebogen!C41","v":0},0,null,"P2S","W'keit Gruppe S",{"$f":"1/(EXP(I24-I25)+EXP(I25-I25)+EXP(I26-I25)+EXP(I27-I25))","v":{"v":0.08513307988500018,"d":"0.0851"}}]
["a33","SU","von P wünsche mehr Rücksicht",{"$f":"Fragebogen!C42","v":0},{"$f":"6-D34","v":6},null,"P3A","W'keit Gruppe A",{"$f":"1/(EXP(I24-I26)+EXP(I25-I26)+EXP(I26-I26)+EXP(I27-I26))","v":{"v":1.2276033219679803E-7,"d":"0.0000"}}]
["a34","BA","brauche Arb. wie Luft zum Atmen",{"$f":"Fragebogen!C43","v":0},0,null,"P4B","W'keit Gruppe B",{"$f":"1/(EXP(I24-I27)+EXP(I25-I27)+EXP(I26-I27)+EXP(I27-I27))","v":{"v":0.9148667972028518,"d":"0.9149"}}]
["a35","BE","strebe nach höheren Zielen",{"$f":"Fragebogen!C44","v":0},0]
["a36","VB","arbeite über meine Kräfte",{"$f":"Fragebogen!C45","v":0},0]
["a37","PS","es muß perfekt sein",{"$f":"Fragebogen!C46","v":0},0]
["a38","DF","Feierabend ist Feierabend",{"$f":"Fragebogen!C47","v":0},0]
["a39","RT","erfolglos, deprimiert mich",{"$f":"Fragebogen!C48","v":0},0]
["a40","OP","künftige Anforderungen gut bewältigen",{"$f":"Fragebogen!C49","v":0},0]
["a41","IR","bin ein ruhender Pol",{"$f":"Fragebogen!C50","v":0},0]
["a42","EE","mir ist fast alles gelungen",{"$f":"Fragebogen!C51","v":0},0]
["a43","LZ","kann mich nicht beklagen",{"$f":"Fragebogen!C52","v":0},0]
["a44","SU","Fam. unterstützt mich",{"$f":"Fragebogen!C53","v":0},0]
["a45","BA","ohne Arb. kann ich nicht leben",{"$f":"Fragebogen!C54","v":0},0]
["a46","BE","für die Zukunft viel vorgenommen",{"$f":"Fragebogen!C55","v":0},0]
["a47","VB","immer Zeitmangel",{"$f":"Fragebogen!C56","v":0},0]
["a48","PS","Arb. erst getan, wenn rundum alles ok",{"$f":"Fragebogen!C57","v":0},0]
["a49","DF","Arb.-probl. beschäftigen immer",{"$f":"Fragebogen!C58","v":0},{"$f":"6-D50","v":6}]
["a50","RT","verliere leicht den Mut..",{"$f":"Fragebogen!C59","v":0},0]
["a51","OP","Mißerfolg weckt neue Kräfte",{"$f":"Fragebogen!C60","v":0},0]
["a52","IR","ruhig und bedächtig",{"$f":"Fragebogen!C61","v":0},0]
["a53","EE","bisher erfolgreich",{"$f":"Fragebogen!C62","v":0},0]
["a54","LZ","bin ziemlich enttäuscht",{"$f":"Fragebogen!C63","v":0},{"$f":"6-D55","v":6}]
["a55","SU","wünschte mir mehr Unterstützung",{"$f":"Fragebogen!C64","v":0},{"$f":"6-D56","v":6}]
["a56","BA","Arbeit ist nicht das Wichtigste",{"$f":"Fragebogen!C65","v":0},{"$f":"6-D57","v":6}]
["a57","BE","ist für mich wichtig",{"$f":"Fragebogen!C66","v":0},0]
["a58","VB","ich verausgabe mich stark",{"$f":"Fragebogen!C67","v":0},0]
["a59","PS","Arb. abschließen müssen, wenn noch verbesserbar",{"$f":"Fragebogen!C68","v":0},0]
["a60","DF","Gedanken kreisen nur um Arb.",{"$f":"Fragebogen!C69","v":0},{"$f":"6-D61","v":6}]
["a61","RT","versagen macht mich mutlos",{"$f":"Fragebogen!C70","v":0},0]
["a62","OP","hartnäckig & strenge mich an",{"$f":"Fragebogen!C71","v":0},0]
["a63","IR","Hektik läßt mich kalt",{"$f":"Fragebogen!C72","v":0},0]
["a64","EE","meine Leistungen können sich sehen lassen",{"$f":"Fragebogen!C73","v":0},0]
["a65","LZ","glücklicher Mensch",{"$f":"Fragebogen!C74","v":0},0]
["a66","SU","es ist immer jemand da.",{"$f":"Fragebogen!C75","v":0},{"$f":"D67","v":0}]

{"sheet":"Norm_Gesamt","index":3,"n_rows":31,"n_cols":12,"rows_kept":31,"hidden":true}
[null,"Subjektive Bedeutung der Arbeit","Beruflicher Ehrgeiz","Verausgabungsbereitschaft","Perfektionsstreben","Distanzierungsfähigkeit","Resignationstendenz (bei Misserfolg)","Offensive Problembewältigung","Innere Ruhe/Ausgeglichenheit","Erfolgserleben im Beruf","Lebenszufriedenheit","Erleben sozialer Unterstützung"]
[1,1,1,1,1,1,1,1,1,1,1,1]
[2,1,1,1,1,1,1,1,1,1,1,1]
[3,1,1,1,1,1,1,1,1,1,1,1]
[4,1,1,1,1,1,1,1,1,1,1,1]
[5,1,1,1,1,1,1,1,1,1,1,1]
[6,1,1,1,1,1,1,1,1,1,1,1]
[7,1,1,1,1,1,1,1,1,1,1,1]
[8,2,1,1,1,1,2,1,1,1,1,1]
[9,2,1,1,1,2,2,1,1,1,1,1]
[10,2,2,1,1,2,2,1,1,1,1,1]
[11,3,2,1,1,3,3,1,1,1,1,1]
[12,3,2,2,1,3,3,1,1,1,1,1]
[13,4,3,2,1,3,4,1,2,1,1,1]
[14,4,3,3,1,4,4,1,2,1,1,1]
[15,4,4,3,2,4,5,1,3,2,2,2]
[16,5,4,4,2,4,5,2,3,2,2,2]
[17,5,5,4,2,5,6,2,4,2,3,2]
[18,6,5,5,3,5,6,3,4,3,3,3]
[19,6,5,5,3,5,7,3,4,3,4,3]
[20,7,6,5,4,6,7,4,5,4,4,4]
[21,7,6,6,4,6,8,4,5,4,5,4]
[22,7,6,6,5,7,8,5,6,5,5,5]
[23,8,7,7,5,7,8,5,6,5,6,5]
[24,8,7,7,6,8,9,6,7,6,6,5]
[25,9,8,8,6,8,9,7,7,6,7,6]
[26,9,8,8,7,8,9,7,8,7,7,6]
[27,9,8,8,7,9,9,8,8,8,8,7]
[28,9,9,9,8,9,9,8,9,8,8,7]
[29,9,9,9,8,9,9,9,9,9,9,8]
[30,9,9,9,9,9,9,9,9,9,9,9]

{"sheet":"Norm_Männer","index":4,"n_rows":31,"n_cols":12,"rows_kept":31,"hidden":true}
[null,"Subjektive Bedeutung der Arbeit","Beruflicher Ehrgeiz","Verausgabungsbereitschaft","Perfektionsstreben","Distanzierungsfähigkeit","Resignationstendenz (bei Misserfolg)","Offensive Problembewältigung","Innere Ruhe/Ausgeglichenheit","Erfolgserleben im Beruf","Lebenszufriedenheit","Erleben sozialer Unterstützung"]
[1,1,1,1,1,1,1,1,1,1,1,1]
[2,1,1,1,1,1,1,1,1,1,1,1]
[3,1,1,1,1,1,1,1,1,1,1,1]
[4,1,1,1,1,1,1,1,1,1,1,1]
[5,1,1,1,1,1,1,1,1,1,1,1]
[6,1,1,1,1,1,1,1,1,1,1,1]
[7,1,1,1,1,1,1,1,1,1,1,1]
[8,2,1,1,1,1,2,1,1,1,1,1]
[9,2,1,1,1,2,2,1,1,1,1,1]
[10,3,1,1,1,2,3,1,1,1,1,1]
[11,3,2,1,1,3,3,1,1,1,1,1]
[12,3,2,2,1,3,4,1,1,1,1,1]
[13,4,3,2,1,3,4,1,2,1,1,1]
[14,4,3,3,1,3,5,1,2,1,2,1]
[15,5,3,3,2,4,5,1,2,2,2,2]
[16,5,4,4,2,4,6,1,3,2,2,2]
[17,5,4,4,2,4,6,2,3,3,3,2]
[18,6,5,5,3,5,7,2,4,3,3,3]
[19,6,5,5,3,5,7,3,4,4,4,3]
[20,7,5,5,4,6,8,4,5,4,4,4]
[21,7,6,6,4,6,8,4,5,4,5,4]
[22,7,6,6,5,6,8,5,6,5,5,5]
[23,8,6,7,5,7,9,5,6,5,6,5]
[24,8,7,7,6,7,9,6,7,6,6,6]
[25,8,7,8,6,8,9,7,7,7,7,6]
[26,9,8,8,7,8,9,7,8,7,7,7]
[27,9,8,8,7,9,9,8,8,8,8,7]
[28,9,9,9,8,9,9,8,9,8,8,8]
[29,9,9,9,8,9,9,8,9,9,9,8]
[30,9,9,9,9,9,9,9,9,9,9,9]

{"sheet":"Norm_Frauen","index":5,"n_rows":31,"n_cols":12,"rows_kept":31,"hidden":true}
[null,"Subjektive Bedeutung der Arbeit","Beruflicher Ehrgeiz","Verausgabungsbereitschaft","Perfektionsstreben","Distanzierungsfähigkeit","Resignationstendenz (bei Misserfolg)","Offensive Problembewältigung","Innere Ruhe/Ausgeglichenheit","Erfolgserleben im Beruf","Lebenszufriedenheit","Erleben sozialer Unterstützung"]
[1,1,1,1,1,1,1,1,1,1,1,1]
[2,1,1,1,1,1,1,1,1,1,1,1]
[3,1,1,1,1,1,1,1,1,1,1,1]
[4,1,1,1,1,1,1,1,1,1,1,1]
[5,1,1,1,1,1,1,1,1,1,1,1]
[6,1,1,1,1,1,1,1,1,1,1,1]
[7,1,1,1,1,1,1,1,1,1,1,1]
[8,1,1,1,1,2,1,1,1,1,1,1]
[9,2,1,1,1,2,1,1,1,1,1,1]
[10,2,2,1,1,2,2,1,1,1,1,1]
[11,3,2,1,1,3,2,1,1,1,1,1]
[12,3,3,2,1,3,3,1,2,1,1,1]
[13,3,3,2,1,3,3,1,2,1,1,1]
[14,4,4,3,1,4,4,1,3,1,1,1]
[15,4,4,3,2,4,4,1,3,1,2,2]
[16,5,4,4,2,4,5,2,3,2,2,2]
[17,5,5,4,2,5,5,2,4,2,3,3]
[18,6,5,5,3,5,6,3,4,3,3,3]
[19,6,6,5,3,6,6,3,5,3,4,3]
[20,7,6,5,4,6,7,4,5,4,4,4]
[21,7,6,6,4,7,7,5,6,4,4,4]
[22,7,7,6,5,7,7,5,6,5,5,4]
[23,8,7,7,5,7,8,6,7,5,6,5]
[24,8,8,7,6,8,8,6,7,6,6,5]
[25,9,8,8,6,8,9,7,7,6,7,6]
[26,9,8,8,7,9,9,7,8,7,7,6]
[27,9,9,8,7,9,9,8,8,8,8,7]
[28,9,9,9,8,9,9,8,9,8,8,7]
[29,9,9,9,8,9,9,9,9,9,9,8]
[30,9,9,9,9,9,9,9,9,9,9,9]